Cogmind - Beta 15 @@@ ROGUE MODE // 2025.08.17 @ 15:15:32 Player: Naughtyusername Result: Destroyed by H-71 Marshal with Heavy Mass Driver Performance ------------- Evolutions (5) 2500 Regions Visited (20) 4000 Robots Destroyed (213) 1065 Value Destroyed (7407) 7407 Prototype IDs (20) 400 Alien Tech Used (0) 0 Bonus (2652) 2652 TOTAL SCORE: 18024 Bonus ------- High Alert Combat Kills 143 Follower Combat Kills 1209 Network Hubs Disabled 200 Built Enhanced Grunts 300 A7 Reached Mainframe 300 Met R17 at Cetus 500 Cogmind --------- Core Integrity 0/1000 Matter 225/300 Energy 100/100 System Corruption 72% Temperature Cool (0) Movement Core (50) Location -5/Factory Parts ------- > --- POWER (1) -------- (None) > --- PROPULSION (4) --- (None) > --- UTILITY (9) ------ Improved Sensor Array (fused) > --- WEAPON (3) ------- (None) > --- INVENTORY (5) ---- Micro Fission Core Advanced Terrain Scanner Improved Kinecellerator Mini Assault Cannon Hypervelocity Gauss Cannon Peak State ------------ > --- POWER ------------ Quantum Reactor > --- PROPULSION ------- Centrium Heavy Treads Centrium Heavy Treads > --- UTILITY ---------- High-capacity Storage Unit Improved Signal Interpreter Improved Salvage Targeting Computer Experimental Target Analyzer Armor Integrity Analyzer Improved Kinecellerator Centrium Medium Armor Plating Centrium Medium Armor Plating Hacking Suite > --- WEAPON ----------- KE Penetrator Hypervelocity Coil Gun Advanced KE Penetrator > --- INVENTORY -------- Hybrid Deuterium Engine Centrium Heavy Treads Improved Coolant Injector Compact Matter Pod Advanced Sensor Array Advanced Terrain Scanner Experimental Utility Shielding Improved Light Armor Plating Layered Medium Armor Plating Reactive Plating Long-range Tractor Beam Advanced Variable Charge Gun Advanced Variable Charge Gun KE Penetrator KE Penetrator Advanced KE Penetrator Mini Assault Cannon Hypervelocity Gauss Cannon Long-range Missile Launcher [Rating: 124] Favorites ----------- Power Hybrid Deuterium Engine Engine Hybrid Deuterium Engine Power Core Light Nuclear Core Reactor Quantum Reactor Propulsion Gravmag System Treads Centrium Heavy Treads Leg Carbon-fiber Leg Wheel Armored Wheel Hover Unit Gravmag System Utility High-capacity Storage Unit Device Seismic Detector Storage High-capacity Storage Unit Processor Experimental Target Analyzer Hackware Hacking Suite Protection Improved Light Armor Plating Weapon Assault Rifle Energy Gun Advanced Variable Charge Gun Energy Cannon Light EM Pulse Cannon Ballistic Gun Assault Rifle Ballistic Cannon Improved Light Cannon Launcher Grenade Launcher Impact Weapon Maul Build | -11 -10 -10 -9 -9 -9 -8 -8 -7 -7 -7 -7 -6 -6 -6 -6 -6 -6 -5 -5 -5 ------- Run | Yrd Mat Min Mat Min Exi Min Mat Fac Low Low Zio Pro Fac Ext Cet Arc Hub Fac Was Fac Slots Evolved 10 | . . . 2 . . . 2 2 . . . . 2 . . . . 2 . . Power . | . . . . . . . . . . . . . . . . . . . . . Propulsion 2 | . . . 1 . . . 1 . . . . . . . . . . . . . Utility 7 | . . . 1 . . . 1 1 . . . . 2 . . . . 2 . . Weapon 1 | . . . . . . . . 1 . . . . . . . . . . . . Parts Attached 166 | 5 5 1 18 1 1 1 16 21 2 . 8 4 20 18 11 1 . 7 4 22 Power 10 | . 1 . 1 . . 1 3 1 1 . . . 1 . . . . 1 . . Engine 4 | . . . 1 . . 1 1 . . . . . 1 . . . . . . . Core 5 | . 1 . . . . . 2 1 1 . . . . . . . . . . . Reactor 1 | . . . . . . . . . . . . . . . . . . 1 . . Propulsion 43 | 2 . 1 7 . . . 3 8 . . . . 7 9 5 . . . . 1 Treads 6 | 2 . 1 . . . . . . . . . . . . 2 . . . . 1 Leg 16 | . . . . . . . . . . . . . 4 9 3 . . . . . Wheel 13 | . . . 7 . . . 3 . . . . . 3 . . . . . . . Hover 8 | . . . . . . . . 8 . . . . . . . . . . . . Flight . | . . . . . . . . . . . . . . . . . . . . . Utility 67 | 2 3 . 3 . 1 . 6 5 1 . 8 1 8 5 5 . . 5 1 13 Device 25 | 2 . . 1 . . . 1 2 1 . 2 . 1 1 3 . . 3 1 7 Storage 7 | . 3 . . . 1 . . 1 . . . . 2 . . . . . . . Processor 13 | . . . . . . . . 2 . . 6 . 1 2 . . . 1 . 1 Hackware 2 | . . . . . . . 1 . . . . . . . . . . . . 1 Protection 20 | . . . 2 . . . 4 . . . . 1 4 2 2 . . 1 . 4 Artifact . | . . . . . . . . . . . . . . . . . . . . . Weapon 46 | 1 1 . 7 1 . . 4 7 . . . 3 4 4 1 1 . 1 3 8 Energy Gun 3 | . . . . . . . . . . . . . . . . . . 1 . 2 Energy Cannon 3 | . . . 2 . . . . 1 . . . . . . . . . . . . Ballistic Gun 16 | 1 . . 2 . . . 3 . . . . . 3 . 1 1 . . . 5 Ballistic Cannon 17 | . . . 2 1 . . . 6 . . . 1 . 4 . . . . 3 . Launcher 6 | . 1 . 1 . . . 1 . . . . 2 . . . . . . . 1 Special Weapon . | . . . . . . . . . . . . . . . . . . . . . Impact Weapon 1 | . . . . . . . . . . . . . 1 . . . . . . . Slashing Weapon . | . . . . . . . . . . . . . . . . . . . . . Piercing Weapon . | . . . . . . . . . . . . . . . . . . . . . Special Melee Weapon . | . . . . . . . . . . . . . . . . . . . . . Unidentified Prototypes 15 | . . . 1 . . . . 1 . . 8 . 1 . 3 . . 1 . . Corrupted Parts 1 | . . . . . . . . . . . . . . . . . . . . 1 System Corruption 8 | . . . . . . . . . . . . . . . . . . . . 8 Parts Lost 59 | . . . 3 . . . 9 7 . . . 7 2 8 6 . 2 . . 15 Power 6 | . . . 1 . . . 2 2 . . . . . . . . . . . 1 Propulsion 20 | . . . . . . . 3 2 . . . 4 1 4 4 . . . . 2 Utility 20 | . . . 1 . . . 2 2 . . . 1 1 2 2 . 1 . . 8 Weapon 13 | . . . 1 . . . 2 1 . . . 2 . 2 . . 1 . . 4 Highest Loss Streak 9 | . . . 2 . . . 6 2 . . . 3 2 3 4 . 2 . . 9 To Critical Strikes 2 | . . . . . . . . . . . . . . . 2 . . . . . Average Backups 17 | 5 16 20 19 20 20 20 19 14 14 14 15 14 13 18 16 17 18 17 19 17 Power . | 1 1 1 . . . . . . . . . . . 1 1 1 1 1 1 . Propulsion 4 | 4 12 13 9 9 8 8 4 1 . . . . 1 1 2 1 1 1 1 . Utility 6 | . . 3 3 4 4 5 6 6 7 8 10 9 7 8 5 6 7 7 9 8 Weapon 5 | . 2 3 6 6 6 6 7 6 6 5 5 4 3 7 7 9 9 8 8 7 Tool/Special . | . . . . . . . . . . . . . . . . . . . . . Unused Backups 50 | 6 4 . 4 . 1 . 8 8 1 2 1 5 2 . 2 . . 1 . 5 Power 6 | . 2 . . . . . . . . . . . 1 . 2 . . . . 1 Propulsion 17 | 4 . . 2 . 1 . 7 3 . . . . . . . . . . . . Utility 13 | . 2 . . . . . 1 1 1 1 1 4 1 . . . . . . 1 Weapon 13 | 2 . . 2 . . . . 4 . . . 1 . . . . . 1 . 3 Tool/Special 1 | . . . . . . . . . . 1 . . . . . . . . . . Average Slot Usage (%) 93 | . 100 100 96 100 100 100 99 90 84 84 83 76 94 99 96 86 85 87 88 82 Engine 4 | . 8 . 8 11 11 11 6 . . . . . 4 6 6 6 6 . . . Core 3 | . 5 14 2 . . . 2 6 7 7 7 7 1 . . . . . . . Treads 7 | . 28 28 . . . . . . . . . . . . 2 13 13 11 11 10 Leg 6 | . . . . . . . . . . . . . 20 25 20 . . . . . Wheel 6 | . . . 32 33 33 33 35 1 . . . . 3 . . . . . . . Hover 4 | . . . . . . . . 28 30 30 30 21 . . . . . . . . Device 9 | . 14 14 10 11 11 11 10 8 6 7 6 5 5 3 11 6 5 15 19 10 Storage 7 | . 14 14 11 11 11 11 9 7 7 7 7 7 4 6 6 6 6 5 5 4 Processor 12 | . . . . . . . . 7 15 15 15 15 20 22 20 20 20 21 23 21 Hackware 2 | . . . . . . . 1 7 7 7 7 7 6 3 . . . . . 4 Protection 5 | . . . 8 11 11 11 13 3 . . . . 5 8 6 13 13 8 2 5 Ballistic Gun 9 | . 27 28 1 . . . 6 1 . . . . 13 10 1 19 19 10 1 5 Ballistic Cannon 8 | . . . 17 22 22 22 10 12 7 7 7 8 3 9 18 . . 1 15 8 Peak Build Rating 124 | 9 11 11 17 17 17 19 27 51 42 44 53 57 72 79 103 103 101 117 116 124 Average Rating 54 | 7 9 11 13 16 17 17 24 40 40 40 42 43 63 72 82 101 100 112 115 109 On Entrance 46 | 6 7 11 11 16 17 17 19 27 38 40 41 47 24 71 72 103 101 88 110 115 Naked Turns 19 | . . . . . . . . . . . . . . . . . . . . 19 Heaviest Build 108 | 13 50 50 58 59 59 59 66 59 33 37 52 37 108 81 82 83 79 100 104 105 Greatest Support 160 | 40 40 40 48 36 36 36 52 50 36 36 36 36 62 85 160 160 160 160 160 160 Greatest Overweight (x) 5 | . 1 1 1 1 1 1 1 2 . 1 1 4 5 1 1 . . . . 1 Average Overweight (x) . | . . 1 1 1 1 1 1 . . . . . 1 . . . . . . . Largest Inventory Capacity 25 | 8 20 20 20 20 20 20 20 20 15 15 15 15 25 20 20 20 20 20 20 20 Average Capacity 18 | 8 19 20 20 20 20 20 20 15 15 15 15 14 20 20 20 20 20 20 20 19 Most Carried 23 | 8 20 20 20 20 20 20 20 19 15 15 15 15 23 20 20 19 19 20 20 20 Average Carried 17 | 5 16 20 19 20 19 20 19 14 14 14 15 14 13 18 18 18 19 18 20 18 Final Capacity 20 | 8 20 20 20 20 20 20 20 15 15 15 15 5 20 20 20 20 20 20 20 5 Final Carried 20 | 8 20 20 20 20 20 20 20 15 15 15 15 5 20 16 18 19 19 20 20 5 Class Distribution -------------------- 52% | Mutant 12% | Gunner 11% | Commander-Gunner 8% | Scavenger-Skirmisher 6% | Scavenger-Tank 5% | Scavenger-Gunner Dominant Class ---------------- Mutant | -10/Materials Mutant | -10/Mines Mutant | -9/Materials Mutant | -9/Mines Mutant | -9/Exiles Mutant | -8/Mines Mutant | -8/Materials Mutant | -7/Factory Mutant | -7/Lower Caves Mutant | -7/Lower Caves Mutant | -7/Zion Mutant | -6/Proximity Caves Gunner | -6/Factory Commander-Gunner | -6/Extension Commander-Gunner | -6/Cetus Commander-Tank | -6/Archives Commander-Tank | -6/Hub_04(d) Scavenger-Skirmisher | -5/Factory Scavenger-Gunner | -5/Waste Scavenger-Skirmisher | -5/Factory Resources | -11 -10 -10 -9 -9 -9 -8 -8 -7 -7 -7 -7 -6 -6 -6 -6 -6 -6 -5 -5 -5 ----------- Run | Yrd Mat Min Mat Min Exi Min Mat Fac Low Low Zio Pro Fac Ext Cet Arc Hub Fac Was Fac Matter Collected 8663 | 310 374 10 534 18 52 174 625 1010 270 145 110 154 498 1154 372 96 69 194 364 2130 Remotely 1894 | . . . . . . . . . . . . . . . 372 . . 81 132 1309 Salvage Created 9053 | 133 388 . 345 20 . 133 1317 377 88 . . 242 532 1628 111 235 187 141 850 2326 Parts 474 | 11 39 . 39 2 . 9 59 26 7 . . 13 32 70 7 8 14 11 12 115 Haulers Intercepted 10 | . 2 . 4 . . . 4 . . . . . . . . . . . . . Recyclers Shooed 15 | . . . 2 . . . 2 1 . . . . 1 . . . . . . 9 Parts Field Recycled . | . . . . . . . . . . . . . . . . . . . . . Retrieved Matter . | . . . . . . . . . . . . . . . . . . . . . Parts Self-Destructed 17 | . . . . . . . . . 7 . . 10 . . . . . . . . Prevented . | . . . . . . . . . . . . . . . . . . . . . Kills | -11 -10 -10 -9 -9 -9 -8 -8 -7 -7 -7 -7 -6 -6 -6 -6 -6 -6 -5 -5 -5 ------- Run | Yrd Mat Min Mat Min Exi Min Mat Fac Low Low Zio Pro Fac Ext Cet Arc Hub Fac Was Fac Combat Hostiles Destroyed 140 | . 10 . 11 . . 7 23 9 4 . . 9 12 21 3 3 2 2 3 21 Guns 54 | . 8 . . . . . 6 . . . . . 5 15 . 3 2 2 . 13 Cannons 60 | . . . 7 . . 7 8 9 4 . . 1 6 6 3 . . . 3 6 AOE 26 | . 2 . 4 . . . 9 . . . . 8 1 . . . . . . 2 Classes Destroyed 17 | 2 6 . 1 . . 1 3 1 . . . . . 1 . . . . 1 1 Worker 17 | . 2 . . 1 . . 6 . . . . . . 1 . . 1 . . 6 Builder 11 | . . . . . . . 1 2 . . . . . 2 . . 1 . . 5 Tunneler 6 | 4 . . . . . . 2 . . . . . . . . . . . . . Hauler 10 | . 2 . 4 . . . 4 . . . . . . . . . . . . . Recycler 11 | 1 . . . . . . 2 . . . . . . 1 . . . . . 7 Mechanic 1 | . . . . . . . . . . . . . . . . . . . . 1 Operator 6 | . 2 . . . . . . . . . . . 1 . . . . . . 3 Watcher 7 | . 1 . 2 . . . . . . . . . . 1 . . . 1 . 2 Swarmer 28 | . 3 . 7 . . 4 . . 4 . . 4 2 . . . . . . 4 Grunt 47 | . 7 . 1 . . 3 15 2 . . . 4 3 11 . . . . . 1 Brawler 2 | . . . . . . . 1 . . . . 1 . . . . . . . . Duelist 3 | . . . . . . 1 . . . . . . 1 1 . . . . . . Sentry 34 | . . . 3 . . . 6 5 . . . . 3 7 . 3 2 . . 5 Hunter 5 | . . . . . . . 1 . . . . . 1 . . . . . . 3 Programmer 14 | . . . . . . . . 2 . . . . 2 . . . . 2 . 8 Behemoth 2 | . . . . . . . . . . . . . . 2 . . . . . . Compactor 3 | . . . . . . . . . . . . . . . . . . . 3 . Cetus Guard 3 | . . . . . . . . . . . . . . . 3 . . . . . Thug 1 | . . . . . . . . . . . . . . 1 . . . . . . Butcher 2 | . . . . . . . . . . . . . . 2 . . . . . . Best Kill Streak 17 | 3 4 . 4 1 . 3 16 2 4 . . 5 4 6 2 3 4 2 1 17 Combat Bots Only 8 | . 3 . 4 . . 3 8 2 4 . . 5 4 6 2 3 1 2 1 5 Max Kills in Single Turn 6 | 1 2 . 2 1 . 1 4 1 1 . . 2 1 2 1 1 1 1 1 6 Gunslinging . | . . . . . . . . . . . . . . . . . . . . . Exploded 2 | . 1 . 2 . . . 2 . . . . 2 1 . . . . . . 1 Melee . | . . . . . . . . . . . . . . . . . . . . . Uniques/NPCs Destroyed . | . . . . . . . . . . . . . . . . . . . . . Combat | -11 -10 -10 -9 -9 -9 -8 -8 -7 -7 -7 -7 -6 -6 -6 -6 -6 -6 -5 -5 -5 -------- Run | Yrd Mat Min Mat Min Exi Min Mat Fac Low Low Zio Pro Fac Ext Cet Arc Hub Fac Was Fac Hostile Shots Fired 1304 | . 67 . 63 2 . 27 138 126 . 2 . 57 122 218 48 1 71 8 . 354 Missed 402 | . 23 . 26 1 . 6 37 46 . 1 . 19 39 78 16 1 27 4 . 78 Hits 902 | . 44 . 37 1 . 21 101 80 . 1 . 38 83 140 32 . 44 4 . 276 Melee 22 | . . . . . . . . 3 . 1 . 2 4 2 . . . . . 10 Projectile 880 | . 44 . 37 1 . 21 101 77 . . . 36 79 138 32 . 44 4 . 266 AOE 1 | . . . . . . . . . . . . . . . . . . . . 1 Critical Strikes 37 | . 1 . 3 . . . 10 3 . . . . 1 2 5 1 1 . . 10 Part Disruptions 2 | . . . . . . . . . . . . . . . . . . . . 2 Damage Taken 13725 | . 529 . 393 10 . 247 1252 1085 . . . 720 1119 1654 751 44 429 86 . 5406 Core 2180 | . 85 . 62 10 . 71 134 97 . . . 299 181 163 63 . 8 . . 1007 Absorbed by Shields 444 | . . . . . . . 320 . . . . . . . 124 . . . . . Reduced by Siege Mode 255 | . . . . . . . . . . . . . . . . . . . . 255 Redirected to Shielding 55 | . . . . . . . . . . . . . 37 . . . . . . 18 Ignored by Resistances 441 | . . . . . . . . . . . . . 147 48 102 5 58 . . 81 Regen/Repaired (Parts) 86 | . . . . . . . . . . . 86 . . . . . . . . . Core Remaining (%) 66 | 100 . 66 . . . 64 75 . . . . 43 . . . . 51 . . . Volleys Fired 567 | 11 45 . 39 3 . 19 73 79 7 9 . 15 35 64 15 6 7 11 14 115 Largest 3 | 2 2 . 2 2 . 2 2 3 1 1 . 2 3 3 3 3 3 3 3 3 Hottest 240 | 40 40 . 63 66 . 66 66 120 40 40 . 80 100 132 128 88 88 240 240 240 Shots Fired 1105 | 22 83 . 74 6 . 38 132 118 7 9 . 16 55 182 39 18 19 21 33 233 Gun 533 | 22 76 . 7 . . . 74 . . . . . 26 110 . 18 18 19 4 159 Cannon 535 | . . . 63 6 . 38 44 118 7 9 . 8 29 72 39 . 1 2 29 70 Launcher 37 | . 7 . 4 . . . 14 . . . . 8 . . . . . . . 4 Special . | . . . . . . . . . . . . . . . . . . . . . Kinetic 1001 | 22 76 . 70 6 . 38 118 90 7 9 . 8 55 182 39 18 19 12 29 203 Thermal 62 | . . . . . . . . 28 . . . . . . . . . 9 4 21 Explosive 37 | . 7 . 4 . . . 14 . . . . 8 . . . . . . . 4 Electromagnetic 5 | . . . . . . . . . . . . . . . . . . . . 5 Robot Hit Streak 16 | 11 10 . 6 7 . 4 9 12 4 6 . 2 9 16 8 3 2 4 4 12 Robot Miss Streak 14 | 4 5 . 3 . . 4 6 6 1 5 . 7 3 14 8 3 5 2 3 4 Penetration Max 2 | . . . . . . . . . . . . . 1 2 . . 1 . . 2 Secondary Targets 4 | . . . . . . . 1 . . . . . . 2 . . . . . 1 Max Gunslinging Chain 1 | . . . . . . . 1 . . . . . . 1 . . . . . 1 Shots Hit Robots 572 | 15 45 . 36 2 . 18 76 46 3 4 . 4 32 107 32 10 8 8 16 110 Core Hits 389 | 6 24 . 18 1 . 10 63 21 4 . . 17 19 73 37 4 6 4 5 77 Critical Kills 39 | . . . . . . . . . . . . . 4 7 . 1 1 . 3 23 Critical Parts Destroyed 38 | . 1 . . . . . . . . . . . . 6 . . 2 1 3 25 Critical Strikes 95 | . 1 . 2 . . . . 4 . . . . 6 14 . 1 3 1 13 50 Destroy 87 | . 1 . . . . . . . . . . . 4 14 . 1 3 1 13 50 Blast 8 | . . . 2 . . . . 4 . . . . 2 . . . . . . . Melee Attacks . | . . . . . . . . . . . . . . . . . . . . . Impact . | . . . . . . . . . . . . . . . . . . . . . Slashing . | . . . . . . . . . . . . . . . . . . . . . Piercing . | . . . . . . . . . . . . . . . . . . . . . Sneak Attacks . | . . . . . . . . . . . . . . . . . . . . . Combat Hostiles . | . . . . . . . . . . . . . . . . . . . . . Follow-up Attacks . | . . . . . . . . . . . . . . . . . . . . . Damage Inflicted 18328 | 199 871 9 1070 41 . 491 2791 1163 110 101 . 880 1082 3012 926 247 294 208 373 4460 Guns 6050 | 199 512 . 59 . . . 672 . . . . . 302 1751 . 247 288 208 . 1812 Cannons 6921 | . . . 760 41 . 491 495 1163 110 101 . 25 631 1261 926 . . . 373 544 Explosions 5199 | . 325 . 247 . . . 1624 . . . . 852 117 . . . . . . 2034 Melee . | . . . . . . . . . . . . . . . . . . . . . Ramming 158 | . 34 9 4 . . . . . . . . 3 32 . . . 6 . . 70 Kinetic 12844 | 199 512 . 819 41 . 491 1167 1137 110 101 . 25 933 3012 926 247 288 178 373 2285 Thermal 538 | . . . . . . . 217 26 . . . . . . . . . 30 . 265 Explosive 4717 | . 325 . 247 . . . 1407 . . . . 852 117 . . . . . . 1769 Electromagnetic 71 | . . . . . . . . . . . . . . . . . . . . 71 Impact . | . . . . . . . . . . . . . . . . . . . . . Slashing . | . . . . . . . . . . . . . . . . . . . . . Piercing . | . . . . . . . . . . . . . . . . . . . . . Highest Corruption 72 | . . . . . . . . . . . . . . . . . 4 . 25 72 Average Corruption 30 | . . . . . . . . . . . . . . . . . 2 . 16 32 Corruption Purged . | . . . . . . . . . . . . . . . . . . . . . Corruption Blocked . | . . . . . . . . . . . . . . . . . . . . . Effects 139 | . . . . . . . . . . . . . . . . . . . 14 125 Message Errors 24 | . . . . . . . . . . . . . . . . . . . . 24 Matter Fused 24 | . . . . . . . . . . . . . . . . . . . 1 23 Heat Flow Errors 8 | . . . . . . . . . . . . . . . . . . . 1 7 Energy Discharges 18 | . . . . . . . . . . . . . . . . . . . 3 15 Parts Rejected 5 | . . . . . . . . . . . . . . . . . . . 1 4 Parts Fused 3 | . . . . . . . . . . . . . . . . . . . . 3 Data Loss (minor) 16 | . . . . . . . . . . . . . . . . . . . 5 11 Data Loss (major) 7 | . . . . . . . . . . . . . . . . . . . 2 5 Misfires 6 | . . . . . . . . . . . . . . . . . . . . 6 Alerts 1 | . . . . . . . . . . . . . . . . . . . . 1 Misdirections 5 | . . . . . . . . . . . . . . . . . . . . 5 Weapon Failures 22 | . . . . . . . . . . . . . . . . . . . 1 21 Overload Shots 29 | . . . . . . . . . . . . . . . . . . 4 4 21 Effects 3 | . . . . . . . . . . . . . . . . . . . . 3 Energy Bleed 1 | . . . . . . . . . . . . . . . . . . . . 1 Heat Surge 1 | . . . . . . . . . . . . . . . . . . . . 1 Short Circuit 1 | . . . . . . . . . . . . . . . . . . . . 1 Overflow Damage 350 | . 6 . 5 . . . 54 23 . 12 . 55 . 25 . . . . . 170 Projectiles 60 | . . . . . . . . 23 . 12 . . . 25 . . . . . . Explosions 290 | . 6 . 5 . . . 54 . . . . 55 . . . . . . . 170 Melee . | . . . . . . . . . . . . . . . . . . . . . Knockbacks 43 | . . . 4 1 . 7 4 6 . 3 . . 5 7 . . . . . 6 Impact . | . . . . . . . . . . . . . . . . . . . . . Kinetic 43 | . . . 4 1 . 7 4 6 . 3 . . 5 7 . . . . . 6 Secondary . | . . . . . . . . . . . . . . . . . . . . . Self-Inflicted Damage 113 | . . . 2 . . . 62 . . . . 41 . . . . . . . 8 Shots 3 | . . . . . . . 2 . . . . 1 . . . . . . . . Rammed 17 | . 4 2 1 . . . . . . . . 2 . . . . 1 . . 7 Targets Rammed 19 | . 5 2 1 . . . . . . . . 2 1 . . . 1 . . 7 Kicked 1 | . . . . . . . . . . . . . 1 . . . . . . . Crushed 1 | . 1 . . . . . . . . . . . . . . . . . . . Highest Temperature 457 | . 20 . 21 24 . 201 196 234 . 1 457 9 89 213 108 27 42 292 438 381 Average Temperature 60 | . 4 . 7 11 . 64 44 61 . 1 202 4 33 44 41 11 20 116 80 83 Received Heat Transfer 2872 | . 267 . 114 . . 81 727 312 . . . 153 312 444 81 9 54 . . 318 Effects 3 | . . . . . . . . . . . 1 . . . . . . . 1 1 Shutdowns 1 | . . . . . . . . . . . . . . . . . . . . 1 Energy Bleed 1 | . . . . . . . . . . . 1 . . . . . . . . . Matter Decay 1 | . . . . . . . . . . . . . . . . . . . 1 . Siege Activations 6 | . . . . . . . . . . . . . . . . . . . . 6 Total Turns 112 | . . . . . . . . . . . . . . . . . . . . 112 Longest Duration 48 | . . . . . . . . . . . . . . . . . . . . 48 Martial Activations . | . . . . . . . . . . . . . . . . . . . . . Shielding Activations . | . . . . . . . . . . . . . . . . . . . . . Robots Disrupted . | . . . . . . . . . . . . . . . . . . . . . Combat Hostiles . | . . . . . . . . . . . . . . . . . . . . . Robots Corrupted . | . . . . . . . . . . . . . . . . . . . . . Combat Hostiles . | . . . . . . . . . . . . . . . . . . . . . Parts Fried 2 | . . . . . . . . . . . . . . . 2 . . . . . Impact Corruptions . | . . . . . . . . . . . . . . . . . . . . . Robots Melted . | . . . . . . . . . . . . . . . . . . . . . Combat Hostiles . | . . . . . . . . . . . . . . . . . . . . . Parts Melted 3 | . . . . . . . . . . . . . . . . . . . . 3 Heat Transferred 424 | . . . . . . . 200 37 . . . . . . . . . 37 . 150 Parts Sabotaged . | . . . . . . . . . . . . . . . . . . . . . Parts Stolen 1 | . . . . . . . . . . 1 . . . . . . . . . . Parts Stripped . | . . . . . . . . . . . . . . . . . . . . . Power Chain Reactions 1 | . . . . . . . . . . . . . . . . . . . . 1 Alert | -11 -10 -10 -9 -9 -9 -8 -8 -7 -7 -7 -7 -6 -6 -6 -6 -6 -6 -5 -5 -5 ------- Run | Yrd Mat Min Mat Min Exi Min Mat Fac Low Low Zio Pro Fac Ext Cet Arc Hub Fac Was Fac Maximum Alert Level 2 | . . . 1 . . . 2 1 . . . . . 1 . 1 1 . . 2 Low Security (%) 83 | 100 100 100 39 100 . 100 57 93 . . . . 100 71 100 90 56 100 100 77 Level 1 12 | . . . 60 . . . 2 6 . . . . . 28 . 9 43 . . 15 Level 2 3 | . . . . . . . 40 . . . . . . . . . . . . 7 Level 3 . | . . . . . . . . . . . . . . . . . . . . . Level 4 . | . . . . . . . . . . . . . . . . . . . . . Level 5 . | . . . . . . . . . . . . . . . . . . . . . High Security . | . . . . . . . . . . . . . . . . . . . . . Max Security . | . . . . . . . . . . . . . . . . . . . . . Peak Influence 628 | 10 192 49 283 109 . 156 546 216 . . . . 166 353 180 201 396 179 28 628 Initial 216 | . . 49 . 105 . . 29 216 . . . . 37 42 180 33 52 179 22 . Average 105 | 1 95 2 174 70 . 114 222 142 . . . . 48 127 94 142 173 75 3 105 Influence Increases 6899 | 25 477 . 634 111 . 256 790 440 90 . . 215 464 1015 365 208 536 137 6 1130 Destroy 0b10 Robot/C 3460 | . 200 . 340 80 . 200 460 180 80 . . 180 240 620 160 80 180 40 . 420 Destroy 0b10 Robot/NC 390 | 25 35 . 40 5 . . 75 10 . . . . 5 45 10 . 15 5 . 120 Destroy Leader 688 | . 56 . 96 10 . 30 118 70 10 . . 20 50 52 . . 50 12 . 114 Allied During Kill 795 | . . . 61 9 . 10 . . . . . . . 261 167 80 207 . . . Successful Hack 181 | . 12 . 41 6 . . 8 31 . . . . 16 11 9 . . 17 . 30 Select Force Hacks 50 | . . . . . . . . . . . . . . . . . 50 . . . Disable Machine 300 | . . . 30 . . 15 15 15 . . . . 75 . . 45 15 45 . 45 Destroy Structure 450 | . 24 . 26 1 . 1 84 14 . . . . 48 11 19 3 19 18 6 176 Lose Combat Pursuer 585 | . 150 . . . . . 30 120 . . . 15 30 15 . . . . . 225 Influence Decreases 6271 | 25 349 128 363 296 86 180 390 728 171 107 . 155 437 779 604 141 319 442 69 502 Entered New Map 1321 | . . 79 . 166 86 . 47 260 71 21 . . 23 45 143 51 99 189 41 . Time Decay 3961 | 25 349 49 333 130 . 160 253 398 100 86 . 105 394 554 247 70 60 248 28 372 Lost Part 540 | . . . 30 . . . 90 70 . . . 50 20 80 50 . 20 . . 130 Lost Ally 449 | . . . . . . 20 . . . . . . . 100 164 20 140 5 . . Squads Dispatched 36 | . 3 . . 1 . . 2 8 . . . 1 4 2 . . 3 1 . 11 Investigation 9 | . . . . 1 . . 1 2 . . . . . 1 . . 2 . . 2 Extermination 11 | . . . . . . . . 3 . . . . 2 . . . . 1 . 5 Reinforcement 15 | . 3 . . . . . 1 3 . . . . 2 1 . . 1 . . 4 Assault 1 | . . . . . . . . . . . . 1 . . . . . . . . Garrison . | . . . . . . . . . . . . . . . . . . . . . Intercept . | . . . . . . . . . . . . . . . . . . . . . Searches Triggered . | . . . . . . . . . . . . . . . . . . . . . Construction Impeded 7 | . . . . . . . . 1 . . . . 1 1 . . 1 . . 3 Haulers Reinforced 1 | . . . . . . . . . . . . . . . . . . . . 1 Active Scanning Responses . | . . . . . . . . . . . . . . . . . . . . . Cargo Convoy Interrupts 1 | . . . . . . . . . . . . . . . . . . . . 1 Stealth | -11 -10 -10 -9 -9 -9 -8 -8 -7 -7 -7 -7 -6 -6 -6 -6 -6 -6 -5 -5 -5 --------- Run | Yrd Mat Min Mat Min Exi Min Mat Fac Low Low Zio Pro Fac Ext Cet Arc Hub Fac Was Fac Distress Signals 15 | . 1 . . . . . 5 1 . . . . 1 2 2 . 3 . . . Communications Jammed . | . . . . . . . . . . . . . . . . . . . . . Distress Signals . | . . . . . . . . . . . . . . . . . . . . . Times Spotted 291 | . 31 . 24 4 . 9 32 24 . 1 . 18 18 33 10 7 14 4 4 58 Peak Tracking Total 17 | . 6 . 5 4 . 3 7 6 . 1 . 14 5 4 5 2 8 2 2 17 Tactical Retreats 26 | . 8 . . . . . 2 5 . . . 1 1 1 . . . . 1 7 Traps | -11 -10 -10 -9 -9 -9 -8 -8 -7 -7 -7 -7 -6 -6 -6 -6 -6 -6 -5 -5 -5 ------- Run | Yrd Mat Min Mat Min Exi Min Mat Fac Low Low Zio Pro Fac Ext Cet Arc Hub Fac Was Fac Traps Triggered 7 | . . . . . . . . 2 . . . . . 2 . . . 1 . 2 Indirectly . | . . . . . . . . . . . . . . . . . . . . . Trap Hack Attempts . | . . . . . . . . . . . . . . . . . . . . . Triggered . | . . . . . . . . . . . . . . . . . . . . . Disarmed . | . . . . . . . . . . . . . . . . . . . . . Reprogrammed . | . . . . . . . . . . . . . . . . . . . . . Reused . | . . . . . . . . . . . . . . . . . . . . . Traps Extracted . | . . . . . . . . . . . . . . . . . . . . . Installed . | . . . . . . . . . . . . . . . . . . . . . Triggered . | . . . . . . . . . . . . . . . . . . . . . Machines | -11 -10 -10 -9 -9 -9 -8 -8 -7 -7 -7 -7 -6 -6 -6 -6 -6 -6 -5 -5 -5 ---------- Run | Yrd Mat Min Mat Min Exi Min Mat Fac Low Low Zio Pro Fac Ext Cet Arc Hub Fac Was Fac Machines Disabled 22 | . . . 2 . . 1 1 1 . . . . 5 2 . 3 1 3 . 3 Max in Single Turn 4 | . . . 1 . . 1 1 1 . . . . 4 1 . 1 . 2 . 2 Network Hub 1 | . . . . . . . . . . . . . . . . . 1 . . . Machines Repaired . | . . . . . . . . . . . . . . . . . . . . . Machines Dismantled . | . . . . . . . . . . . . . . . . . . . . . Machines Sabotaged 1 | . . . . . . . . . . . . . . . . . 1 . . . Overloaded Fab Kills . | . . . . . . . . . . . . . . . . . . . . . Hacking | -11 -10 -10 -9 -9 -9 -8 -8 -7 -7 -7 -7 -6 -6 -6 -6 -6 -6 -5 -5 -5 --------- Run | Yrd Mat Min Mat Min Exi Min Mat Fac Low Low Zio Pro Fac Ext Cet Arc Hub Fac Was Fac Machines Accessed 58 | . 7 . 11 1 1 . 6 10 1 . . . 3 6 1 . 1 2 . 8 Terminals 49 | . 5 . 11 1 . . 5 9 1 . . . 3 6 1 . 1 1 . 5 Fabricators 2 | . . . . . . . . . . . . . . . . . . . . 2 Repair Stations . | . . . . . . . . . . . . . . . . . . . . . Recycling Units 5 | . 2 . . . . . . 1 . . . . . . . . . 1 . 1 Scanalyzers . | . . . . . . . . . . . . . . . . . . . . . Garrison Access 1 | . . . . . . . 1 . . . . . . . . . . . . . Total Hacks 152 | . 11 . 35 5 1 . 17 29 3 . . . 5 9 1 . 4 6 . 26 Successful 61 | . 7 . 17 1 1 . 6 7 3 . . . 4 5 1 . 1 3 . 5 Failed 90 | . 4 . 17 4 . . 11 22 . . . . 1 4 . . 3 3 . 21 Catastrophic 11 | . . . 1 1 . . . 2 . . . . . 1 . . 1 1 . 4 Database Lockouts 1 | . . . 1 . . . . . . . . . . . . . . . . . Manual 86 | . 8 . 26 5 . . 11 9 . . 1 . 1 5 1 . 4 1 . 14 Terminals 131 | . 8 . 35 5 . . 15 27 3 . . . 5 9 1 . 4 3 . 16 Fabricators 4 | . . . . . . . . . . . . . . . . . . . . 4 Repair Stations . | . . . . . . . . . . . . . . . . . . . . . Recycling Units 14 | . 3 . . . . . . 2 . . . . . . . . . 3 . 6 Scanalyzers . | . . . . . . . . . . . . . . . . . . . . . Garrison Access 2 | . . . . . . . 2 . . . . . . . . . . . . . Terminal Hacks 26 | . . . 7 1 1 . 1 3 3 . . . 3 4 1 . . 1 . 1 Record 5 | . . . . . 1 . 1 . 3 . . . . . . . . . . . Robot Analysis 2 | . . . 1 1 . . . . . . . . . . . . . . . . Prototype ID Bank 2 | . . . 2 . . . . . . . . . . . . . . . . . Open Door 6 | . . . . . . . . . . . . . 1 4 1 . . . . . Level Access Points 1 | . . . . . . . . 1 . . . . . . . . . . . . Branch Access Points 3 | . . . 1 . . . . 1 . . . . 1 . . . . . . . Terminal Index 2 | . . . 1 . . . . . . . . . . . . . . . . 1 Locate Traps 2 | . . . 1 . . . . . . . . . 1 . . . . . . . Dispatch Records 1 | . . . 1 . . . . . . . . . . . . . . . . . Hauler Manifests 2 | . . . . . . . . 1 . . . . . . . . . 1 . . Fabricator Hacks 1 | . . . . . . . . . . . . . . . . . . . . 1 Network Status 1 | . . . . . . . . . . . . . . . . . . . . 1 Repair Station Hacks . | . . . . . . . . . . . . . . . . . . . . . Recycling Unit Hacks 4 | . 2 . . . . . . 1 . . . . . . . . . 1 . . Retrieve Components 4 | . 2 . . . . . . 1 . . . . . . . . . 1 . . Scanalyzer . | . . . . . . . . . . . . . . . . . . . . . Garrison Access Hacks . | . . . . . . . . . . . . . . . . . . . . . Unauthorized Hacks 30 | . 5 . 10 . . . 5 3 . . . . 1 1 . . 1 1 . 3 Terminals 27 | . 5 . 10 . . . 5 2 . . . . 1 1 . . 1 . . 2 Assimilate 1 | . . . . . . . . 1 . . . . . . . . . . . . Botnet 10 | . 1 . 3 . . . 1 1 . . . . 1 1 . . . . . 2 Operators 1 | . . . 1 . . . . . . . . . . . . . . . . . Skim 14 | . 4 . 6 . . . 4 . . . . . . . . . . . . . Sabotage 1 | . . . . . . . . . . . . . . . . . 1 . . . Fabricators 1 | . . . . . . . . . . . . . . . . . . . . 1 Haulers 1 | . . . . . . . . . . . . . . . . . . . . 1 Repair Stations . | . . . . . . . . . . . . . . . . . . . . . Recycling Units 2 | . . . . . . . . 1 . . . . . . . . . 1 . . Recyclers 2 | . . . . . . . . 1 . . . . . . . . . 1 . . Scanalyzers . | . . . . . . . . . . . . . . . . . . . . . Garrison Access . | . . . . . . . . . . . . . . . . . . . . . Data Cores Recovered 4 | . 1 . . . . . . . . . . . . . . . . . . 3 Used 1 | . . . . . . . . . . . . . . . . . . . . 1 Hacking Detections 46 | . 2 . 11 1 . . 6 9 1 . . . 3 2 1 . 1 1 . 8 Full Trace Events 6 | . . . . 1 . . 1 2 . . . . . 1 . . . . . 1 Feedback Events . | . . . . . . . . . . . . . . . . . . . . . Feedback Blocked . | . . . . . . . . . . . . . . . . . . . . . Robot Schematics Acquired . | . . . . . . . . . . . . . . . . . . . . . Robots Built . | . . . . . . . . . . . . . . . . . . . . . Authchips . | . . . . . . . . . . . . . . . . . . . . . Time . | . . . . . . . . . . . . . . . . . . . . . Total Robot Build Rating . | . . . . . . . . . . . . . . . . . . . . . Part Schematics Acquired . | . . . . . . . . . . . . . . . . . . . . . Parts Built . | . . . . . . . . . . . . . . . . . . . . . Authchips . | . . . . . . . . . . . . . . . . . . . . . Time . | . . . . . . . . . . . . . . . . . . . . . Total Part Build Rating . | . . . . . . . . . . . . . . . . . . . . . Parts Repaired . | . . . . . . . . . . . . . . . . . . . . . Time . | . . . . . . . . . . . . . . . . . . . . . Parts Recycled . | . . . . . . . . . . . . . . . . . . . . . Recycled Matter . | . . . . . . . . . . . . . . . . . . . . . Retrieved Matter . | . . . . . . . . . . . . . . . . . . . . . Retrieved Components 26 | . 14 . . . . . . 9 . . . . . . . . . 3 . . Parts Scanalyzed . | . . . . . . . . . . . . . . . . . . . . . Part Schematics Acquired . | . . . . . . . . . . . . . . . . . . . . . Parts Damaged . | . . . . . . . . . . . . . . . . . . . . . Bothacking | -11 -10 -10 -9 -9 -9 -8 -8 -7 -7 -7 -7 -6 -6 -6 -6 -6 -6 -5 -5 -5 ------------ Run | Yrd Mat Min Mat Min Exi Min Mat Fac Low Low Zio Pro Fac Ext Cet Arc Hub Fac Was Fac Used RIF Installer . | . . . . . . . . . . . . . . . . . . . . . Robots Hacked . | . . . . . . . . . . . . . . . . . . . . . Non-combat . | . . . . . . . . . . . . . . . . . . . . . Combat . | . . . . . . . . . . . . . . . . . . . . . Robot Hacks Applied . | . . . . . . . . . . . . . . . . . . . . . Relay Couplers Released . | . . . . . . . . . . . . . . . . . . . . . Fabnet Peak Effective % . | . . . . . . . . . . . . . . . . . . . . . Robots Rewired 21 | . . . . . . . . . . . . . . 21 . . . . . . Allies Hacked . | . . . . . . . . . . . . . . . . . . . . . Hacks Repelled . | . . . . . . . . . . . . . . . . . . . . . Allies | -11 -10 -10 -9 -9 -9 -8 -8 -7 -7 -7 -7 -6 -6 -6 -6 -6 -6 -5 -5 -5 -------- Run | Yrd Mat Min Mat Min Exi Min Mat Fac Low Low Zio Pro Fac Ext Cet Arc Hub Fac Was Fac Total Allies 33 | . . 3 . . . . . . . . . . . 25 5 . . . . . Largest Group 16 | . . 3 3 2 2 2 . . . . . . . 16 16 12 10 1 . . Highest-Rated Group 892 | . . 40 40 24 24 24 . . . . . . . 603 892 814 609 34 . . Highest-Rated Ally 159 | . . 16 16 16 16 16 . . . . . . . 159 159 159 96 34 . . Total Orders . | . . . . . . . . . . . . . . . . . . . . . Ally Attacks 308 | . . . 43 8 . 13 . . . . . . . 103 72 30 39 . . . Total Damage 7322 | . . . 380 51 . 102 . . . . . . . 1904 1870 1105 1910 . . . Kills 49 | . . . 9 4 . 3 . . . . . . . 15 7 1 10 . . . Allies Corrupted 1 | . . . . . . . . . . . . . . . . . 1 . . . Allies Melted . | . . . . . . . . . . . . . . . . . . . . . Intel | -11 -10 -10 -9 -9 -9 -8 -8 -7 -7 -7 -7 -6 -6 -6 -6 -6 -6 -5 -5 -5 ------- Run | Yrd Mat Min Mat Min Exi Min Mat Fac Low Low Zio Pro Fac Ext Cet Arc Hub Fac Was Fac Active Infowar (turns) 10518 | 65 1435 983 935 272 210 321 504 939 216 207 516 261 30 1192 35 1 125 587 24 1660 Optics 2636 | . . . . . . . . 894 216 207 450 . . 834 35 . . . . . Sensors 2236 | . . . . . . . . 52 2 . . 97 30 . . . . 422 16 1617 IFF 11 | . . . . . . . . . . . . . . . . . . . . 11 Terrain 2217 | 51 . . . . . . . . . . . . . 358 . 1 125 587 24 1071 Seismic 6326 | 14 1435 983 935 272 210 321 504 617 213 207 451 164 . . . . . . . . Robot Analysis Total 2 | . . . 1 1 . . . . . . . . . . . . . . . . Derelict Logs Recovered 5 | . . 1 . . . . . . . . 2 2 . . . . . . . . Drone Launches . | . . . . . . . . . . . . . . . . . . . . . Drone Recoveries . | . . . . . . . . . . . . . . . . . . . . . Exploration | -11 -10 -10 -9 -9 -9 -8 -8 -7 -7 -7 -7 -6 -6 -6 -6 -6 -6 -5 -5 -5 ------------- Run | Yrd Mat Min Mat Min Exi Min Mat Fac Low Low Zio Pro Fac Ext Cet Arc Hub Fac Was Fac Turns Passed 14427 | 110 1435 983 1003 272 210 321 806 941 216 207 517 347 1281 2058 556 145 136 590 287 2006 Spaces Moved 9342 | 41 546 408 746 249 190 251 532 1113 408 301 905 353 661 887 190 54 70 332 139 966 Core 230 | . . . . . . . . . . . . 1 20 . . . . . . 209 Treads 2394 | 35 546 408 . . . . . . . . . . . . 53 54 70 332 139 757 Legs 1463 | 6 . . . . . . . . . . . . 433 887 137 . . . . . Wheels 2200 | . . . 746 249 190 251 532 24 . . . . 208 . . . . . . . Hover 3055 | . . . . . . . . 1089 408 301 905 352 . . . . . . . . Flight . | . . . . . . . . . . . . . . . . . . . . . Fastest Speed 48 | 120 160 240 105 105 105 105 102 48 48 48 48 48 50 112 160 160 160 160 160 50 Average Speed 119 | 154 229 240 111 105 105 105 103 60 48 48 48 72 165 155 181 160 160 160 160 136 Slowest Speed 263 | 160 240 240 115 105 105 105 107 130 48 108 108 250 263 190 190 160 160 160 160 240 Overloaded Moves . | . . . . . . . . . . . . . . . . . . . . . Propulsion Burnouts . | . . . . . . . . . . . . . . . . . . . . . Robots Hopped . | . . . . . . . . . . . . . . . . . . . . . Potential Cave-ins . | . . . . . . . . . . . . . . . . . . . . . Cave-ins Triggered . | . . . . . . . . . . . . . . . . . . . . . Exploration Rate (%) 53 | 3 93 75 65 39 56 73 54 41 61 46 82 56 21 90 71 72 12 8 75 25 Regions Visited 20 Branch Regions 12 Pre-discovered Areas 6 | . . 1 2 1 1 . . . . . 1 . . . . . . . . . Known Exits Taken 5 | . . . 1 . . 1 . 1 . . . 1 1 . . . . . . . Unknown Exits Taken 13 | 1 1 1 . 1 1 . 1 . 1 1 1 . . 1 1 1 1 . . . Scrap Searched 9 | . . 1 . . . 1 . . 1 2 2 2 . . . . . . . . Spaces Dug 63 | . . . 12 1 . . 2 9 . . . 13 . . . . 1 3 2 20 Terrain Destroyed 409 | . 23 . 28 1 . 1 97 23 . 2 . 57 47 9 1 2 2 8 4 104 Melee . | . . . . . . . . . . . . . . . . . . . . . Projectile 115 | . . . 2 1 . 1 2 23 . 2 . 3 6 9 1 2 2 8 4 49 AOE 294 | . 23 . 26 . . . 95 . . . . 54 41 . . . . . . 55 Terrain Rammed . | . . . . . . . . . . . . . . . . . . . . . Walls Destroyed . | . . . . . . . . . . . . . . . . . . . . . Machines Disabled . | . . . . . . . . . . . . . . . . . . . . . Actions | -11 -10 -10 -9 -9 -9 -8 -8 -7 -7 -7 -7 -6 -6 -6 -6 -6 -6 -5 -5 -5 --------- Run | Yrd Mat Min Mat Min Exi Min Mat Fac Low Low Zio Pro Fac Ext Cet Arc Hub Fac Was Fac Total 11589 | 68 635 411 843 254 202 271 677 1283 420 352 986 428 802 1428 377 98 79 371 173 1431 Wait 841 | . 18 . 4 1 7 . 15 10 . 33 58 40 39 202 139 34 . 2 13 226 Move 9324 | 40 545 407 745 248 189 250 531 1112 407 300 904 353 660 886 189 53 69 332 138 966 Hop . | . . . . . . . . . . . . . . . . . . . . . Pick Up 137 | 5 11 . 11 . 2 . 23 18 2 4 1 . 25 2 11 1 . 8 . 13 Fast Attach 66 | 2 . . 6 . . . 2 10 . . 11 1 14 3 4 . . . 1 12 Attach 77 | 3 . . 3 . . . 11 13 1 2 . 8 6 8 6 . . 4 . 12 Detach 37 | 3 . . 2 . . . . 7 . 1 6 6 6 1 3 . . . . 2 Swap 141 | . 8 1 15 1 1 1 7 6 2 . . 2 3 11 1 4 2 11 7 58 Drop 136 | 4 3 1 17 1 3 1 15 28 1 3 6 2 13 6 9 . . 3 . 20 Fire 567 | 11 45 . 39 3 . 19 73 79 7 9 . 15 35 64 15 6 7 11 14 115 Melee . | . . . . . . . . . . . . . . . . . . . . . Ram 4 | . . . 1 . . . . . . . . 1 . . . . . . . 2 Kick 1 | . . . . . . . . . . . . . 1 . . . . . . . Crush 13 | . 5 2 . . . . . . . . . . . . . . 1 . . 5 Escape Stasis 10 | . . . . . . . . . . . . . . 10 . . . . . . Rewire 235 | . . . . . . . . . . . . . . 235 . . . . . . Trap . | . . . . . . . . . . . . . . . . . . . . . Miscellaneous . | . . . . . . . . . . . . . . . . . . . . . Route ------- -11/Scrapyard -10/Materials (discovered 5 exits: *Mat x3 / [*Min x2]) -10/Mines (discovered 2 exits: *Mat x2) -9/Materials (discovered 5 exits: *Mat x3 / *Min x2) -9/Mines -9/Exiles (discovered 2 exits: [*Min x2]) -8/Mines -8/Materials (discovered 3 exits: *Fac / *Sto x2) -7/Factory (discovered 6 exits: *Fac x4 / *Low x2) -7/Lower Caves -7/Lower Caves -7/Zion -6/Proximity Caves -6/Factory (discovered 5 exits: *Fac / Low x2 / *Ext x2) -6/Extension (discovered 2 exits: *Fac / *Cet) -6/Cetus (discovered 2 exits: *Fac / [*Arc]) -6/Archives (discovered 2 exits: *Fac / *Hub) -6/Hub_04(d) -5/Factory -5/Waste -5/Factory (discovered 2 exits: [*Fac] / *Upp) History --------- Turn | Location | Event 1 | -11/Scrapyard | Discovered new exit (range 1) 111 | -11/Scrapyard | Entered Materials 312 | -10/Materials | Build established: Mutant 357 | -10/Materials | Discovered new exit (range 9) 500 | -10/Materials | Discovered new exit (range 9) 754 | -10/Materials | Discovered new exit (range 10) 1070 | -10/Materials | Discovered new exit (range 16) 1349 | -10/Materials | Discovered new exit (range 7) 1546 | -10/Materials | Entered Mines 1580 | -10/Mines | Learned location of Zion (-7) 1787 | -10/Mines | A weapon hastily lodged in a ceiling crevice suddenly fell to the ground 1987 | -10/Mines | Assisted by bots powering up and referring to "LRC-V3" 2083 | -10/Mines | Discovered new exit (range 9) 2306 | -10/Mines | Discovered new exit (range 5) 2529 | -10/Mines | Entered Materials 2529 | -9/Materials | Accompanied by 3 allies 2529 | -9/Materials | Evolved 2 slots: Propulsion x1, Utility x1 2717 | -9/Materials | Identified exit to Mines 2939 | -9/Materials | Discovered new exit (range 16) 3485 | -9/Materials | Discovered new exit (range 16) 3498 | -9/Materials | Identified exit to Materials 3499 | -9/Materials | Learned location of 1 exit from Recycling 3501 | -9/Materials | Loaded intel: 17 trap records 3524 | -9/Materials | Central database locked down 3532 | -9/Materials | Entered Mines 3532 | -9/Mines | Accompanied by 2 allies 3542 | -9/Mines | Met a Derelict bent on vengeance 3547 | -9/Mines | Deemed a non-threat by the Exiles lab entrance 3547 | -9/Mines | Discovered new exit (range 5) 3628 | -9/Mines | Learned location of Storage (-8) 3804 | -9/Mines | Entered Exiles 3804 | -9/Exiles | Accompanied by 2 allies 3820 | -9/Exiles | Discovered new exit (range 15) 3831 | -9/Exiles | Met 8R-AWN 3846 | -9/Exiles | Met EX-HEX 3907 | -9/Exiles | Met EX-DEC 3999 | -9/Exiles | Discovered new exit (range 10) 4014 | -9/Exiles | Entered Mines 4014 | -8/Mines | Accompanied by 2 allies 4230 | -8/Mines | Discovered exit to Materials (range 15) 4335 | -8/Mines | Entered Materials 4335 | -8/Materials | Evolved 2 slots: Propulsion x1, Utility x1 4336 | -8/Materials | Identified exit to Storage 4596 | -8/Materials | Discovered exit to Storage (range 4) 4840 | -8/Materials | Destroyed 8 combat bots 5002 | -8/Materials | Lost 6 parts (1p2n2u1w) 5019 | -8/Materials | Discovered new exit (range 16) 5141 | -8/Materials | Entered Factory 5141 | -7/Factory | Evolved 2 slots: Utility x1, Weapon x1 5266 | -7/Factory | Identified exit to Factory 5664 | -7/Factory | Identified exit to Lower Caves 6082 | -7/Factory | Entered Lower Caves 6129 | -7/Lower Caves | Encountered a Warlord checkpoint 6262 | -7/Lower Caves | Discovered new exit (range 12) 6298 | -7/Lower Caves | Entered another Lower Caves area 6354 | -7/Lower Caves | Spotted B-75 Beast 6462 | -7/Lower Caves | Discovered new exit (range 5) 6505 | -7/Lower Caves | Entered Zion 6527 | -7/Zion | Discovered new exit (range 7) 6542 | -7/Zion | Learned Factory non-interactive machine intel 6548 | -7/Zion | Received a visual enhancement algorithm 6549 | -7/Zion | Ran a visual enhancement algorithm 6608 | -7/Zion | Learned location of Armory (-3) 6692 | -7/Zion | Found Prototype Device 6692 | -7/Zion | Identified Phasing AFG 6742 | -7/Zion | Given the Hacking Drone Bay 6750 | -7/Zion | Found Prototype Device 6750 | -7/Zion | Identified Hacking Drone Bay 6778 | -7/Zion | Learned Factory security intel 6917 | -7/Zion | Found Prototype Processor 6917 | -7/Zion | Identified Exp. Targeting Computer 6920 | -7/Zion | Found Prototype Processor 6920 | -7/Zion | Identified Exp. Melee Analysis Suite 6922 | -7/Zion | Found Prototype Processor 6922 | -7/Zion | Identified Spectral Analyzer 6949 | -7/Zion | Found Prototype Processor 6949 | -7/Zion | Identified Exp. Terrain Scan Processor 6952 | -7/Zion | Found Prototype Processor 6952 | -7/Zion | Identified Exp. Target Analyzer 7022 | -7/Zion | Entered Proximity Caves 7045 | -6/Proximity Caves | Learned Factory interactive machine intel 7064 | -6/Proximity Caves | Attracted the attention of an 0b10 checkpoint 7228 | -6/Proximity Caves | Lost 3 parts (2n1u) 7355 | -6/Proximity Caves | Attracted the attention of an 0b10 outpost 7369 | -6/Proximity Caves | Core integrity fell below 50% 7369 | -6/Proximity Caves | Entered Factory 7369 | -6/Factory | Evolved 2 slots: Utility x2 7371 | -6/Factory | Loaded intel: 224 non-interactive machine locations 7372 | -6/Factory | Loaded intel: 55 interactive machine locations 7388 | -6/Factory | Found Hvy. Reflective Plating 7400 | -6/Factory | Lost 3 parts (2n1w) 7470 | -6/Factory | Found Hvy. Reflective Plating 7666 | -6/Factory | Identified exit to Lower Caves 7666 | -6/Factory | Identified exit to Extension 7952 | -6/Factory | Build established: Gunner 8633 | -6/Factory | Discovered new exit (range 9) 8650 | -6/Factory | Entered Extension 9726 | -6/Extension | Rescued a captive Derelict 9737 | -6/Extension | Rescued a captive Derelict 9817 | -6/Extension | Build established: Commander-Gunner 9940 | -6/Extension | Spotted B-75 Beast 9969 | -6/Extension | Destroyed B-75 Beast 9978 | -6/Extension | Spotted B-75 Beast 9999 | -6/Extension | Destroyed B-75 Beast 10027 | -6/Extension | Lost 3 parts (2u1w) 10033 | -6/Extension | Lost 6 allies 10095 | -6/Extension | Lost 3 allies 10358 | -6/Extension | Rescued a captive Derelict 10358 | -6/Extension | Rescued a captive Derelict 10483 | -6/Extension | Rescued A7 10579 | -6/Extension | Discovered new exit (range 10) 10581 | -6/Extension | Discovered new exit (range 6) 10708 | -6/Extension | Entered Cetus 10708 | -6/Cetus | Accompanied by 16 allies (A7) 10713 | -6/Cetus | Acquired a Cetus Manufacturing Module code from A7 10732 | -6/Cetus | Spotted Cetus Guard 10732 | -6/Cetus | Spotted Cetus Guard 10735 | -6/Cetus | Spotted Cetus Guard 10735 | -6/Cetus | Spotted Cetus Guard 10748 | -6/Cetus | Destroyed Cetus Guard 10757 | -6/Cetus | Allies destroyed Cetus Guard 10766 | -6/Cetus | Allies destroyed Cetus Guard 10771 | -6/Cetus | Allies destroyed Cetus Guard 10798 | -6/Cetus | Lost 4 parts (2n2u) 10801 | -6/Cetus | Lost 7 allies 10885 | -6/Cetus | Started Cetus Manufacturing Module 10898 | -6/Cetus | Escorted A7 to Cetus Mainframe 10910 | -6/Cetus | Manufactured an Enhanced Grunt 10935 | -6/Cetus | Manufactured an Enhanced Grunt 10960 | -6/Cetus | Manufactured an Enhanced Grunt 10985 | -6/Cetus | Manufactured an Enhanced Grunt 11010 | -6/Cetus | Manufactured an Enhanced Grunt 11053 | -6/Cetus | Discovered new exit (range 16) 11094 | -6/Cetus | Spotted Cetus Guard 11094 | -6/Cetus | Spotted Cetus Guard 11098 | -6/Cetus | Spotted Cetus Guard 11098 | -6/Cetus | Spotted Cetus Guard 11110 | -6/Cetus | Destroyed Cetus Guard 11112 | -6/Cetus | Allies destroyed Cetus Guard 11122 | -6/Cetus | Allies destroyed Cetus Guard 11123 | -6/Cetus | Destroyed Cetus Guard 11130 | -6/Cetus | Discovered new exit (range 16) 11140 | -6/Cetus | Met Revision 17 11264 | -6/Cetus | Entered Archives 11264 | -6/Archives | Accompanied by 12 allies (A7) 11269 | -6/Archives | Received a hacking code to weaken MAIN.C 11327 | -6/Archives | Discovered new exit (range 15) 11345 | -6/Archives | Discovered new exit (range 14) 11409 | -6/Archives | Entered Hub_04(d) 11409 | -6/Hub_04(d) | Accompanied by 10 allies 11429 | -6/Hub_04(d) | Build established: Commander-Tank 11443 | -6/Hub_04(d) | Discovered new exit (range 16) 11521 | -6/Hub_04(d) | Network Hub disabled 11537 | -6/Hub_04(d) | Spotted Lightning 11539 | -6/Hub_04(d) | Spotted Lightning 11539 | -6/Hub_04(d) | Spotted Lightning 11545 | -6/Hub_04(d) | Entered Factory 11545 | -5/Factory | Accompanied by 1 ally 11545 | -5/Factory | Evolved 2 slots: Utility x2 11567 | -5/Factory | Lost 8 allies 12001 | -5/Factory | Build established: Scavenger-Skirmisher 12135 | -5/Factory | Sucked down chute 12135 | -5/Factory | Entered Waste 12150 | -5/Waste | EMP discharged 12183 | -5/Waste | Spotted C-40 Crusher 12199 | -5/Waste | Destroyed C-40 Crusher 12226 | -5/Waste | Spotted C-40 Crusher 12226 | -5/Waste | Spotted C-40 Crusher 12237 | -5/Waste | Destroyed C-40 Crusher 12250 | -5/Waste | EMP discharged 12250 | -5/Waste | System corruption reached 10% 12271 | -5/Waste | Destroyed C-40 Crusher 12274 | -5/Waste | Spotted C-40 Crusher 12279 | -5/Waste | Spotted C-40 Crusher 12350 | -5/Waste | EMP discharged 12399 | -5/Waste | Discovered new exit (range 13) 12420 | -5/Waste | Identified exit to Factory 12422 | -5/Waste | Entered Factory 12465 | -5/Factory | Build established: Scavenger-Gunner 12602 | -5/Factory | Discovered new exit (range 16) 12719 | -5/Factory | Identified exit to Upper Caves 13435 | -5/Factory | System corruption reached 30% 13793 | -5/Factory | Build established: Scavenger-Tank 14274 | -5/Factory | Cargo convoy interrupted 14299 | -5/Factory | Released all parts (12) 14330 | -5/Factory | Lost 9 parts (1p2n4u2w) 14367 | -5/Factory | Core integrity fell below 50% 14419 | -5/Factory | Core integrity fell below 20% 14425 | -5/Factory | Discovered new exit (range 15) 14428 | -5/Factory | Destroyed by H-71 Marshal with Heavy Mass Driver Last Messages --------------- Trojan loaded successfully. Testing... Terminal linked with 1 system. Awaiting botnet instructions. >>Index(Terminals) Found 20 terminals. Downloaded coordinate data. 14407_ Triggered Alarm Trap. 14407_ An alarm sounds. 14407_ ALERT: Alarm triggered, dispatching investigation squad. 14416_ Slug penetrates Wall. 14416_ Knocked back. 14418_ Penetrated by Slug. 14421_ Imp. Signal Interpreter destroyed. 14425_ EXIT=FOUND 14426_ Slug penetrates Wall. 14427_ Penetrated by Slug. 14427_ Slammed into H-66 Slayer. 14428_ Penetrated by Slug. Map ----- +----------------------------------------------------+ | ?????????# !! """##?????## ## #= %## | | ?????????# #??#????# ## """ ### ### | | ?????????##########/#####??????## ## T" ### ### | | ??????????????# #???? ?##### ##= """ #?# ### | | ??????????????# """ #???? ???### ## #?# #?# | | ??????????????# "R #??????????# ## #?# ### | | ??????????????# """ /#???????#??# #####+##### #?# | | ??????????????# """ #???"??????# #?# | | ???????????????? ]?????? ??#?# ########### ### | | ?????????????????#+#####+######## #?????#??## #?# | | ?????????????????# ###?????#?# #### | | ?????????????????#### ####??####?#??????## #### | | ????????????????????# #????????########### | | ????????????????????# % #?????##?# # | | ????????????????????# ###?###### # | | ????????????????????# #"### # + | | ????????????????????# % + # """ """ # | | ????????????????????# # # """ """ # | | ????????????????????# # # """ """ # | | ???????????????????## + # # | | ???????????????????#; #####"" # # | | ???????????????????## #???#"T ########+## | | ????????????????????# #?#?#"" #?#????# | | ????????????????????# #???# #??????# | | ????????????# ### hH########p######## | | ????????????# < h@% p % | | ????????????# #########+#################+#+## | | ?????????????????????????? ?????????# | | ??????????????????????? ?? ????????## "" | | ????????????????????????? ""????????# ""S """ "" | | ????????????????????????? ""????????? "" """ "" | | ????????????????????????T """???????? """ "" | | ????????????????????????" ???????# | | ??????????????????????? ? ??????# | | ???????????????????????######?????????#####?###### | | | | | | | | | | | | | | | | | | | | | | | | | | | | | | | +----------------------------------------------------+ Best States ------------- Heat Dissipation 59 Coolant Potential 80 Energy Generation 25 Energy Capacity 800 Matter Stores 300 Matter Capacity 300 Sight Range 22 Robot Scan Range 16 Terrain Scan Range 20 Terrain Scan Density 1010 Armor Coverage 1500 Resistance: KI 20 Resistance: TH 25 Utility Shielding 90 Phase Shifting 5 Evasion (%) 55 Target Analysis 10 Core Analysis 6 Armor Integrity Analysis 30 Recoil Reduction 4 Matter Filtering 30 Kinecelleration 40 Salvage Targeting 2 Offensive Hacking 10 Item Schematics ----------------- None Robot Schematics ------------------ None Fabricated ------------ Nothing Repaired ---------- Nothing Alien Tech Used ----------------- None Achievements -------------- None Challenges ------------ None Game ------ Seed RocketAssaultMatterbank Manual? 0 Play Time 02:29:01 Cumulative 97.0 hours Start 2025.08.16 @ 23:43:30 End 2025.08.17 @ 15:15:32 Sessions 3 Manual Loads 0 Difficulty Rogue Special Mode None Game No. 39 Rogue 39 Adventurer 0 Explorer 0 Win Type - Total 1 Types 0/0/1/0/0/0/0/0/0/0 Lore% 69 Gallery% 55 Achievement% 76 Wizard Run 0 Options --------- Layout 2 ASCII 0 Keyboard 1 Movement Vi Keybinds 0 Fullscreen 1 Font 28/SwanstonBold Map View 50x52 Zoom Use 0% Tactical HUD 1 Map Filters NONE Filters NONE Steam 1 RUN: c414eeae-c5b5-4dfa-a171-fe0c41d07644